[Event "German-ch Women 2024"]
[Site "Ostfildern"]
[Date "2024.08.22"]
[Round "5.4"]
[White "Novikova, Margarita"]
[Black "Staerk, Elisa"]
[Result "1/2-1/2"]
[ECO "A45"]
[WhiteElo "1991"]
[BlackElo "2002"]
[Annotator "RC"]
[PlyCount "82"]
[EventDate "2024.08.16"]
[EventType "tourn"]
[EventCountry "GER"]
[SourceTitle "playchess.com"]
[Source "ChessBase"]
[SourceQuality "1"]
[TimeControl "40/5400+30:1800+30"]

1. d4 {[%emt 0:00:55]} Nf6 {[%emt 0:00:07]} 2. Bf4 {[%emt 0:01:26]} c5 {[%emt 0:01:51]} 3. e3 {[%emt 0:06:27]} g6 {[%emt 0:00:48]} 4. Nc3 {[%emt 0:01:20]} cxd4 {[%emt 0:05:14]} 5. exd4 {[%emt 0:00:31]} Bg7 {[%emt 0:00:43]} 6. Nf3 {[%emt 0:01:05]} d6 {[%emt 0:01:36]} 7. Bc4 {[%emt 0:02:22]} O-O {[%emt 0:02:23]} 8. h3 {[%emt 0:01:00]} b6 {[%emt 0:04:35]} 9. O-O {[%emt 0:06:28]} Bb7 {[%emt 0:03:03]} 10. d5 {[%emt 0:01:38]} Nbd7 {[%emt 0:02:55]} 11. Qd2 {[%emt 0:00:59]} Rc8 {[%emt 0:01:19]} 12. Bb3 {[%emt 0:05:03]} Nc5 {[%emt 0:03:12]} 13. Bh6 {[%emt 0:01:00]} Nxb3 {[%emt 0:03:11]} 14. axb3 {[%emt 0:00:03]} a5 {[%emt 0:04:14]} 15. Ra4 {[%emt 0:11:57]} Rc5 {[%emt 0:04:46]} 16. Rh4 {[%emt 0:06:02]} Bh8 {[%emt 0:10:28]} 17. Bxf8 {[%emt 0:01:22]} Kxf8 {[%emt 0:00:37]} 18. Ng5 {[%emt 0:04:10]} Bg7 {[%emt 0:04:58]} 19. Re1 {[%emt 0:11:52]} Kg8 {[%emt 0:09:05]} 20. Qe2 {[%emt 0:11:16]} Bf8 {[%emt 0:07:05]} 21. Qf3 {[%emt 0:05:20]} h6 {[%emt 0:06:51]} 22. Nge4 {[%emt 0:01:00]} Nxe4 {[%emt 0:00:30]} 23. Rhxe4 {[%emt 0:02:30]} e6 {[%emt 0:07:47]} 24. dxe6 {[%emt 0:03:55]} f5 {[%emt 0:00:25]} 25. e7 {[%emt 0:07:18]} Bxe7 {[%emt 0:00:20]} 26. Rxe7 {[%emt 0:01:21]} Bxf3 {[%emt 0:00:08]} 27. Re8+ {[%emt 0:00:04]} Qxe8 {[%emt 0:00:05]} 28. Rxe8+ {[%emt 0:00:02]} Kf7 {[%emt 0:00:06]} 29. Rb8 {[%emt 0:00:15]} Be4 {[%emt 0:00:48]} 30. Nxe4 {[%emt 0:05:07]} fxe4 {[%emt 0:00:24]} 31. Rxb6 {[%emt 0:00:01]} Rxc2 {[%emt 0:00:13]} 32. Rxd6 {[%emt 0:00:04]} Rxb2 {[%emt 0:00:09]} 33. Ra6 {[%emt 0:00:05]} Rxb3 {[%emt 0:00:15]} 34. Rxa5 {[%emt 0:00:00]} e3 {[%emt 0:00:40]} 35. fxe3 {[%emt 0:00:08]} Rxe3 {[%emt 0:00:04]} 36. Ra6 {[%emt 0:00:05]} Re6 {[%emt 0:01:15]} 37. Ra5 {[%emt 0:00:07]} h5 {[%emt 0:00:30]} 38. g3 {[%emt 0:00:57]} Re2 {[%emt 0:00:27]} 39. h4 {[%emt 0:00:41]} Rb2 {[%emt 0:00:51]} 40. Rc5 {[%emt 0:00:38]} Ke6 {[%emt 0:00:32]} 41. Rg5 {[%emt 0:30:05]} Kf6 {[%emt 0:46:30]} 1/2-1/2

[Event "German-ch Women 2024"]
[Site "Ostfildern"]
[Date "2024.08.22"]
[Round "5.5"]
[White "Just, Anita"]
[Black "Moutaqi, Sandra"]
[Result "1-0"]
[ECO "B73"]
[WhiteElo "1871"]
[BlackElo "1961"]
[Annotator "RC"]
[PlyCount "147"]
[EventDate "2024.08.16"]
[EventType "tourn"]
[EventCountry "GER"]
[SourceTitle "playchess.com"]
[Source "ChessBase"]
[SourceQuality "1"]
[TimeControl "40/5400+30:1800+30"]

1. e4 {[%emt 0:00:02]} c5 {[%emt 0:00:10]} 2. Nf3 {[%emt 0:00:06]} d6 {[%emt 0:00:17]} 3. d4 {[%emt 0:00:09]} cxd4 {[%emt 0:00:16]} 4. Nxd4 {[%emt 0:00:05]} Nc6 {[%emt 0:00:10]} 5. Nc3 {[%emt 0:00:13]} Nf6 {[%emt 0:00:14]} 6. Be2 {[%emt 0:00:27]} g6 {[%emt 0:00:17]} 7. Be3 {[%emt 0:00:28]} Bg7 {[%emt 0:00:06]} 8. O-O {[%emt 0:00:27]} O-O {[%emt 0:00:05]} 9. h3 {[%emt 0:00:28]} Bd7 {[%emt 0:00:46]} 10. Qd2 {[%emt 0:01:31]} a6 {[%emt 0:01:20]} 11. f4 {[%emt 1:32:04]} Rc8 {[%emt 0:02:24]} 12. Rad1 {[%emt 0:00:00]} Qc7 {[%emt 0:03:40]} 13. Bf3 {[%emt 0:00:00]} Na5 {[%emt 0:05:29]} 14. Qf2 {[%emt 0:00:00]} Nc4 {[%emt 0:01:39]} 15. Bc1 {[%emt 0:00:00]} b5 {[%emt 0:04:23]} 16. Nce2 {[%emt 0:00:00]} Rfd8 {[%emt 0:06:30]} 17. Ng3 {[%emt 0:00:00]} b4 {[%emt 0:10:14]} 18. b3 {[%emt 0:00:00]} Na5 {[%emt 0:02:38]} 19. Be3 {[%emt 0:00:00]} Re8 {[%emt 0:04:23]} 20. Rd2 {[%emt 0:00:00]} e5 {[%emt 0:06:33]} 21. Nde2 {[%emt 0:00:00]} Nb7 {[%emt 0:00:57]} 22. Rfd1 {[%emt 0:00:00]} Bc6 {[%emt 0:03:52]} 23. c4 {[%emt 0:00:00]} Bf8 {[%emt 0:02:57]} 24. f5 {[%emt 0:00:00]} Nc5 {[%emt 0:02:11]} 25. fxg6 {[%emt 0:00:00]} hxg6 {[%emt 0:05:18]} 26. Bxc5 {[%emt 0:00:00]} dxc5 {[%emt 0:00:11]} 27. Qe3 {[%emt 0:00:00]} Kh7 {[%emt 0:01:07]} 28. Qg5 {[%emt 0:00:00]} Bh6 {[%emt 0:00:44]} 29. Qxf6 {[%emt 0:00:00]} Bxd2 {[%emt 0:07:39]} 30. Rxd2 {[%emt 0:00:00]} Qe7 {[%emt 0:01:47]} 31. Qxe7 {[%emt 0:00:00]} Rxe7 {[%emt 0:00:05]} 32. Bg4 {[%emt 0:00:17]} Rf8 {[%emt 0:02:51]} 33. Rd6 {[%emt 0:01:01]} Bb7 {[%emt 0:00:30]} 34. Nc1 {[%emt 0:02:09]} f6 {[%emt 0:01:11]} 35. Nd3 {[%emt 0:00:40]} Rc7 {[%emt 0:00:37]} 36. Be6 {[%emt 0:00:53]} Kh6 {[%emt 0:04:28]} 37. Kf2 {[%emt 0:01:34]} Kg5 {[%emt 0:01:13]} 38. Bd5 {[%emt 0:01:39]} Bxd5 {[%emt 0:02:34]} 39. Rxd5 {[%emt 0:00:14]} Rfc8 {[%emt 0:00:14]} 40. Nf1 {[%emt 0:00:18]} a5 {[%emt 0:00:58]} 41. Ne3 {[%emt 0:30:39]} Rc6 {[%emt 0:32:41]} 42. Kf3 {[%emt 0:02:06]} R8c7 {[%emt 0:00:57]} 43. g3 {[%emt 0:02:31]} Kh6 {[%emt 0:04:08]} 44. Nd1 {[%emt 0:00:00]} Kg5 {[%emt 0:00:00]} 45. N1b2 {[%emt 0:00:00]} Re7 {[%emt 0:00:00]} 46. Nxc5 {[%emt 0:00:00]} f5 {[%emt 0:00:00]} 47. Nbd3 {[%emt 0:00:00]} fxe4+ {[%emt 0:00:00]} 48. Kxe4 {[%emt 0:00:00]} Rh7 {[%emt 0:00:00]} 49. Nxe5 {[%emt 0:00:00]} Rxc5 {[%emt 0:00:00]} 50. h4+ {[%emt 0:00:00]} Kf6 {[%emt 0:00:00]} 51. Rxc5 {[%emt 0:00:00]} Re7 {[%emt 0:00:00]} 52. Rxa5 {[%emt 0:00:00]} Re6 {[%emt 0:00:00]} 53. Kf4 {[%emt 0:00:00]} Rd6 {[%emt 0:00:00]} 54. Ng4+ {[%emt 0:00:00]} Kf7 {[%emt 0:00:00]} 55. Ra7+ {[%emt 0:00:00]} Ke6 {[%emt 0:00:00]} 56. Ke4 {[%emt 0:00:00]} Rd2 {[%emt 0:00:00]} 57. Ra6+ {[%emt 0:00:00]} Kf7 {[%emt 0:00:00]} 58. Ne5+ {[%emt 0:00:00]} Ke8 {[%emt 0:00:00]} 59. Nxg6 {[%emt 0:00:00]} Rg2 {[%emt 0:00:00]} 60. Kf3 {[%emt 0:00:00]} Rd2 {[%emt 0:00:00]} 61. Ra7 {[%emt 0:00:00]} Rd3+ {[%emt 0:00:00]} 62. Kf4 {[%emt 0:00:00]} Rd4+ {[%emt 0:00:00]} 63. Ke5 {[%emt 0:00:00]} Rg4 {[%emt 0:00:00]} 64. Kf6 {[%emt 0:00:00]} Rxg3 {[%emt 0:00:07]} 65. Ne5 {[%emt 0:00:00]} Kd8 {[%emt 0:00:43]} 66. h5 {[%emt 0:00:00]} Rh3 {[%emt 0:00:22]} 67. Kg6 {[%emt 0:00:00]} Rg3+ {[%emt 0:00:25]} 68. Kh7 {[%emt 0:00:31]} Rh3 {[%emt 0:01:27]} 69. h6 {[%emt 0:00:20]} Rh5 {[%emt 0:00:23]} 70. Nc6+ {[%emt 0:01:02]} Kc8 {[%emt 0:00:46]} 71. Nxb4 {[%emt 0:00:52]} Kb8 {[%emt 0:00:05]} 72. Kg6 {[%emt 0:01:39]} Rxh6+ {[%emt 0:00:49]} 73. Kxh6 {[%emt 0:00:10]} Kxa7 {[%emt 0:00:02]} 74. c5 {[%emt 0:00:24]} 1-0

[Event "German-ch Women 2024"]
[Site "Ostfildern"]
[Date "2024.08.22"]
[Round "5.6"]
[White "Wilmink, Anna"]
[Black "Foltin, Alica"]
[Result "1-0"]
[ECO "B74"]
[WhiteElo "1905"]
[BlackElo "1722"]
[Annotator "RC"]
[PlyCount "77"]
[EventDate "2024.08.16"]
[EventType "tourn"]
[EventCountry "GER"]
[SourceTitle "playchess.com"]
[Source "ChessBase"]
[SourceQuality "1"]
[TimeControl "40/5400+30:1800+30"]

1. e4 {[%emt 0:00:01]} c5 {[%emt 0:00:05]} 2. Nf3 {[%emt 0:00:49]} d6 {[%emt 0:00:04]} 3. d4 {[%emt 0:00:10]} cxd4 {[%emt 0:00:03]} 4. Nxd4 {[%emt 0:00:05]} Nf6 {[%emt 0:00:04]} 5. Nc3 {[%emt 0:00:35]} Nc6 {[%emt 0:00:02]} 6. Be2 {[%emt 0:01:57]} g6 {[%emt 0:00:05]} 7. Be3 {[%emt 0:00:51]} Bg7 {[%emt 0:00:06]} 8. O-O {[%emt 0:01:29]} O-O {[%emt 0:00:28]} 9. Nb3 {[%emt 0:01:48]} Be6 {[%emt 0:01:47]} 10. f4 {[%emt 0:01:33]} a6 {[%emt 0:01:22]} 11. Bf3 {[%emt 0:05:00]} Rc8 {[%emt 0:01:49]} 12. Nd5 {[%emt 0:02:46]} Nd7 {[%emt 0:01:57]} 13. c3 {[%emt 0:04:03]} b5 {[%emt 0:00:48]} 14. Nd4 {[%emt 0:02:21]} Bxd5 {[%emt 0:02:08]} 15. exd5 {[%emt 0:00:33]} Na5 {[%emt 0:00:55]} 16. Qe2 {[%emt 0:03:37]} Re8 {[%emt 0:10:21]} 17. a4 {[%emt 0:08:15]} Bxd4 {[%emt 0:18:15]} 18. Bxd4 {[%emt 0:03:11]} Nb3 {[%emt 0:01:53]} 19. Rad1 {[%emt 0:05:49]} Rc4 {[%emt 0:02:36]} 20. axb5 {[%emt 0:03:18]} axb5 {[%emt 0:00:16]} 21. Be3 {[%emt 0:01:18]} Qa5 {[%emt 0:05:53]} 22. Qc2 {[%emt 0:03:55]} Qa4 {[%emt 0:02:35]} 23. Qf2 {[%emt 0:03:33]} Nf6 {[%emt 0:15:47]} 24. Be2 {[%emt 0:05:52]} Rc7 {[%emt 0:03:01]} 25. f5 {[%emt 0:01:17]} Qe4 {[%emt 0:08:28]} 26. fxg6 {[%emt 0:05:10]} hxg6 {[%emt 0:06:22]} 27. Bxb5 {[%emt 0:02:57]} Rf8 {[%emt 0:01:20]} 28. Bd3 {[%emt 0:08:18]} Qe5 {[%emt 0:01:24]} 29. Bh6 {[%emt 0:05:18]} Ng4 {[%emt 0:01:20]} 30. Qh4 {[%emt 0:00:18]} Nxh6 {[%emt 0:02:08]} 31. Qxh6 {[%emt 0:00:11]} Qg7 {[%emt 0:00:29]} 32. Qxg7+ {[%emt 0:06:33]} Kxg7 {[%emt 0:00:12]} 33. Bc2 {[%emt 0:01:39]} Rb8 {[%emt 0:00:10]} 34. Rf3 {[%emt 0:02:14]} Rc4 {[%emt 0:04:32]} 35. Rdf1 {[%emt 0:02:44]} f5 {[%emt 0:01:18]} 36. Re3 {[%emt 0:00:36]} Kf7 {[%emt 0:00:29]} 37. Rfe1 {[%emt 0:00:47]} Rc7 {[%emt 0:00:18]} 38. Rh3 {[%emt 0:03:45]} e5 {[%emt 0:04:14]} 39. Rh7+ {[%emt 0:00:20]} 1-0

[Event "German-ch Women 2024"]
[Site "Ostfildern"]
[Date "2024.08.22"]
[Round "5.7"]
[White "Walker, Julia"]
[Black "Wagenschuetz, Evelyn"]
[Result "1/2-1/2"]
[ECO "B22"]
[WhiteElo "1836"]
[BlackElo "2070"]
[Annotator "RC"]
[PlyCount "136"]
[EventDate "2024.08.16"]
[EventType "tourn"]
[EventCountry "GER"]
[SourceTitle "playchess.com"]
[Source "ChessBase"]
[SourceQuality "1"]
[TimeControl "40/5400+30:1800+30"]

1. e4 {[%emt 0:00:02]} c5 {[%emt 0:00:07]} 2. c3 {[%emt 0:00:06]} Nf6 {[%emt 0:00:27]} 3. e5 {[%emt 0:00:05]} Nd5 {[%emt 0:00:05]} 4. d4 {[%emt 0:00:04]} cxd4 {[%emt 0:00:15]} 5. Nf3 {[%emt 0:00:07]} e6 {[%emt 0:00:16]} 6. cxd4 {[%emt 0:00:11]} d6 {[%emt 0:00:09]} 7. Bc4 {[%emt 0:00:25]} Be7 {[%emt 0:00:37]} 8. Qe2 {[%emt 0:00:06]} O-O {[%emt 0:01:47]} 9. O-O {[%emt 0:00:14]} b6 {[%emt 0:00:20]} 10. Rd1 {[%emt 0:00:26]} Bb7 {[%emt 0:00:19]} 11. Bxd5 {[%emt 0:00:53]} exd5 {[%emt 0:00:22]} 12. Bf4 {[%emt 0:04:27]} dxe5 {[%emt 0:03:55]} 13. Bxe5 {[%emt 0:03:28]} Ba6 {[%emt 0:02:39]} 14. Qd2 {[%emt 0:01:45]} Nd7 {[%emt 0:02:13]} 15. Nc3 {[%emt 0:02:33]} Bb4 {[%emt 0:07:22]} 16. Rac1 {[%emt 0:06:51]} f6 {[%emt 0:21:14]} 17. Bg3 {[%emt 0:01:41]} Re8 {[%emt 0:01:41]} 18. Re1 {[%emt 0:07:01]} Rxe1+ {[%emt 0:12:21]} 19. Qxe1 {[%emt 0:06:59]} Nf8 {[%emt 0:03:11]} 20. h3 {[%emt 0:23:20]} Qd7 {[%emt 0:04:24]} 21. a3 {[%emt 0:06:15]} Bd6 {[%emt 0:00:35]} 22. Bxd6 {[%emt 0:01:17]} Qxd6 {[%emt 0:00:01]} 23. Qd1 {[%emt 0:10:48]} Ne6 {[%emt 0:08:12]} 24. Qa4 {[%emt 0:06:52]} Bb7 {[%emt 0:03:50]} 25. Re1 {[%emt 0:02:40]} Bc6 {[%emt 0:02:34]} 26. Qb4 {[%emt 0:06:48]} Qxb4 {[%emt 0:04:55]} 27. axb4 {[%emt 0:00:05]} Kf7 {[%emt 0:02:46]} 28. b5 {[%emt 0:01:02]} Bb7 {[%emt 0:01:03]} 29. g3 {[%emt 0:01:34]} Nc7 {[%emt 0:05:18]} 30. Rc1 {[%emt 0:02:29]} Bc8 {[%emt 0:02:39]} 31. Ne1 {[%emt 0:02:21]} Bxh3 {[%emt 0:03:01]} 32. Nd3 {[%emt 0:00:47]} g5 {[%emt 0:04:41]} 33. Nb4 {[%emt 0:00:46]} Bd7 {[%emt 0:00:37]} 34. Nbxd5 {[%emt 0:01:02]} Nxd5 {[%emt 0:00:40]} 35. Nxd5 {[%emt 0:00:06]} Bxb5 {[%emt 0:00:25]} 36. Rc7+ {[%emt 0:00:36]} Ke6 {[%emt 0:01:01]} 37. Nc3 {[%emt 0:00:23]} Bd3 {[%emt 0:01:17]} 38. d5+ {[%emt 0:00:50]} Kd6 {[%emt 0:01:04]} 39. Rc6+ {[%emt 0:00:12]} Ke7 {[%emt 0:00:08]} 40. Rc7+ {[%emt 0:01:19]} Kd6 {[%emt 0:00:04]} 41. Rc6+ {[%emt 0:02:06]} Ke5 {[%emt 0:07:49]} 42. Re6+ {[%emt 0:07:23]} Kf5 {[%emt 0:00:07]} 43. Re7 {[%emt 0:07:01]} h5 {[%emt 0:02:50]} 44. d6 {[%emt 0:01:00]} Rd8 {[%emt 0:01:02]} 45. Rxa7 {[%emt 0:03:34]} Rxd6 {[%emt 0:00:12]} 46. Kg2 {[%emt 0:07:06]} Be4+ {[%emt 0:08:56]} 47. Nxe4 {[%emt 0:02:00]} Kxe4 {[%emt 0:00:01]} 48. Ra3 {[%emt 0:00:31]} Rd3 {[%emt 0:02:44]} 49. Ra4+ {[%emt 0:00:35]} Kd5 {[%emt 0:00:16]} 50. Ra8 {[%emt 0:01:56]} Kc4 {[%emt 0:00:46]} 51. Rb8 {[%emt 0:01:40]} Rd6 {[%emt 0:00:40]} 52. Rh8 {[%emt 0:00:55]} b5 {[%emt 0:02:01]} 53. Rxh5 {[%emt 0:00:26]} b4 {[%emt 0:00:42]} 54. f4 {[%emt 0:01:11]} gxf4 {[%emt 0:02:09]} 55. gxf4 {[%emt 0:00:06]} Kb3 {[%emt 0:00:46]} 56. Rb5 {[%emt 0:00:06]} Rd4 {[%emt 0:02:28]} 57. Rf5 {[%emt 0:00:10]} Kxb2 {[%emt 0:00:19]} 58. Rxf6 {[%emt 0:00:05]} b3 {[%emt 0:00:12]} 59. f5 {[%emt 0:00:21]} Rc4 {[%emt 0:03:13]} 60. Rb6 {[%emt 0:00:51]} Kc2 {[%emt 0:02:30]} 61. f6 {[%emt 0:00:18]} b2 {[%emt 0:00:28]} 62. f7 {[%emt 0:00:09]} Rf4 {[%emt 0:00:09]} 63. Rc6+ {[%emt 0:00:13]} Kb3 {[%emt 0:01:23]} 64. Rb6+ {[%emt 0:00:09]} Kc3 {[%emt 0:00:08]} 65. Rc6+ {[%emt 0:00:15]} Kb3 {[%emt 0:01:05]} 66. Rb6+ {[%emt 0:00:04]} Ka2 {[%emt 0:00:03]} 67. Ra6+ {[%emt 0:00:08]} Kb1 {[%emt 0:00:03]} 68. Ra7 {[%emt 0:00:29]} Kc1 {[%emt 0:01:26]} 1/2-1/2

[Event "German-ch Women 2024"]
[Site "Ostfildern"]
[Date "2024.08.22"]
[Round "5.8"]
[White "Moeller, Hannah"]
[Black "Wartenberg, Alissa"]
[Result "1-0"]
[ECO "A46"]
[WhiteElo "1845"]
[BlackElo "1858"]
[Annotator "NA RC"]
[PlyCount "99"]
[EventDate "2024.08.16"]
[EventType "tourn"]
[EventCountry "GER"]
[SourceTitle "playchess.com"]
[Source "ChessBase"]
[SourceQuality "1"]
[TimeControl "40/5400+30:1800+30"]

1. Nf3 {[%emt 0:00:01]} d5 {[%emt 0:00:08]} 2. g3 {[%emt 0:00:08]} e6 {[%emt 0:00:15]} 3. Bg2 {[%emt 0:00:05]} b5 {[%emt 0:00:28]} 4. d4 {[%emt 0:00:41]} Nf6 {[%emt 0:00:11]} 5. O-O {[%emt 0:00:17]} Bb7 {[%emt 0:00:21]} 6. Nbd2 {[%emt 0:01:40] A46: 1 d4 Nf6 2 Nf3 e6: Torre, London and Colle Systems.} Nbd7 {[%emt 0:03:53]} 7. b3 {[%emt 0:00:32]} b4 {[%emt 0:19:13]} 8. Bb2 {[%emt 0:02:32]} c5 {[%emt 0:02:17]} 9. c4 {[%emt 0:03:26]} bxc3 {[%emt 0:01:35]} 10. Bxc3 {[%emt 0:00:12]} Rc8 {[%emt 0:02:38]} 11. Rc1 {[%emt 0:02:17]} Be7 {[%emt 0:03:53]} 12. dxc5 {[%emt 0:02:57]} Bxc5 {[%emt 0:01:03]} 13. Ne5 {[%emt 0:01:29]} (13. b4 $11 {deserves consideration.} Bb6 14. Qb3) 13... O-O {[%emt 0:10:05]} (13... Nxe5 $15 14. Bxe5 O-O) 14. Nxd7 {[%emt 0:02:11]} Nxd7 {[%emt 0:00:36]} 15. Nf3 {[%emt 0:00:08]} Qb6 {[%emt 0:06:23]} 16. Bd4 {[%emt 0:02:44]} Ba6 {[%emt 0:04:23]} 17. Qd2 {[%emt 0:03:21]} Qd6 {[%emt 0:03:41]} 18. Rfe1 {[%emt 0:05:16]} Bb4 {[%emt 0:02:42]} 19. Bc3 {[%emt 0:00:30]} Rxc3 {[%emt 0:03:49]} 20. Rxc3 {[%emt 0:00:15]} Nc5 $11 {[%emt 0:17:35]} (20... Nf6 $5 21. Nd4 Bxc3 22. Qxc3 Rc8 $11) 21. Qb2 {[%emt 0:09:07]} Bxc3 {[%emt 0:00:26]} 22. Qxc3 {[%emt 0:00:04]} Rc8 {[%emt 0:00:32]} 23. Qb2 {[%emt 0:02:05]} Qb6 {[%emt 0:01:54]} 24. Rc1 {[%emt 0:03:36]} h6 {[%emt 0:00:30]} 25. Rc2 {[%emt 0:05:39]} Ne4 {[%emt 0:05:55]} 26. Rxc8+ {[%emt 0:00:14]} Bxc8 {[%emt 0:00:04]} 27. Qd4 {[%emt 0:02:36]} Qa6 {[%emt 0:00:49]} 28. Qb2 {[%emt 0:02:38]} Qc6 {[%emt 0:02:27]} 29. e3 {[%emt 0:03:43]} Ba6 {[%emt 0:00:46]} 30. Nd4 {[%emt 0:01:51]} Qc3 {[%emt 0:00:40]} 31. Qxc3 {[%emt 0:01:21]} Nxc3 {[%emt 0:00:03]} 32. a3 {[%emt 0:00:55]} Bd3 {[%emt 0:04:01]} 33. Bf1 {[%emt 0:01:41]} Bxf1 {[%emt 0:00:18]} 34. Kxf1 {[%emt 0:00:03]} Nb1 {[%emt 0:00:28]} 35. a4 {[%emt 0:01:13]} Nd2+ {[%emt 0:01:06]} 36. Ke2 {[%emt 0:00:42]} Ne4 {[%emt 0:00:05]} 37. Nc6 {[%emt 0:01:19]} Nc5 {[%emt 0:01:07]} 38. Nxa7 {[%emt 0:01:11]} Nxb3 {[%emt 0:00:08]} 39. Nc6 {[%emt 0:00:11]} Kf8 {[%emt 0:00:21]} 40. a5 {[%emt 0:00:17]} Nc5 {[%emt 0:00:56]} 41. Nb4 {[%emt 0:31:49]} Ke8 {[%emt 0:32:19]} 42. a6 {[%emt 0:01:54]} Nd7 {[%emt 0:00:08]} 43. Kd3 {[%emt 0:00:56]} Nb6 {[%emt 0:01:13]} 44. Kd4 {[%emt 0:01:03]} Kd7 {[%emt 0:00:15]} 45. Kc5 {[%emt 0:02:36]} Kc7 {[%emt 0:00:48]} 46. a7 {[%emt 0:03:42]} Kb7 {[%emt 0:00:23]} 47. Nc6 {[%emt 0:01:30]} Nc8 {[%emt 0:00:22]} 48. Nd8+ {[%emt 0:00:36]} Kxa7 {[%emt 0:00:11]} 49. Nxf7 {[%emt 0:00:04]} Kb7 {[%emt 0:00:55]} 50. Nd8+ {[%emt 0:00:21]} 1-0

[Event "German-ch Women 2024"]
[Site "Ostfildern"]
[Date "2024.08.22"]
[Round "5.9"]
[White "Noll, Sonja"]
[Black "Koeberl, Christiane"]
[Result "1/2-1/2"]
[ECO "C24"]
[WhiteElo "1810"]
[BlackElo "1745"]
[Annotator "NA RC"]
[PlyCount "198"]
[EventDate "2024.08.16"]
[EventType "tourn"]
[EventCountry "GER"]
[SourceTitle "playchess.com"]
[Source "ChessBase"]
[SourceQuality "1"]
[TimeControl "40/5400+30:1800+30"]

1. e4 {[%emt 0:00:03]} d6 {[%emt 0:00:48]} 2. Bc4 {[%emt 0:00:42]} Nf6 {[%emt 0:00:09]} 3. d3 {[%emt 0:01:13]} e5 {[%emt 0:00:15]} 4. Ne2 {[%emt 0:01:51]} Be7 {[%emt 0:01:28]} 5. Nbc3 {[%emt 0:02:23]} c6 {[%emt 0:00:08]} 6. a4 {[%emt 0:00:55] C24: Bishop's Opening: 2...Nf6.} Nbd7 {[%emt 0:00:55]} 7. O-O {[%emt 0:01:02]} a5 {[%emt 0:01:20]} 8. Ng3 {[%emt 0:05:58]} Nb6 {[%emt 0:06:29]} 9. Ba2 {[%emt 0:04:24]} Bg4 {[%emt 0:03:07]} 10. f3 {[%emt 0:02:20]} Be6 {[%emt 0:00:15]} 11. Bb1 {[%emt 0:03:41]} d5 {[%emt 0:00:49]} 12. exd5 {[%emt 0:04:44]} Nbxd5 {[%emt 0:04:15]} 13. Nce4 {[%emt 0:04:38]} Qb6+ {[%emt 0:02:11]} 14. Kh1 {[%emt 0:04:56]} Ne3 {[%emt 0:00:26]} 15. Nxf6+ {[%emt 0:00:37]} gxf6 {[%emt 0:01:55]} 16. Bxe3 {[%emt 0:00:29]} Qxe3 {[%emt 0:00:03]} 17. Re1 {[%emt 0:01:59]} Qh6 {[%emt 0:01:27]} 18. Qc1 {[%emt 0:02:38]} (18. Ba2 $11 {might be stronger.}) 18... Qg7 {[%emt 0:01:06]} (18... Qxc1 $15 19. Rxc1 h5) 19. f4 {[%emt 0:03:22]} h5 {[%emt 0:06:35]} 20. Ba2 {[%emt 0:04:37]} h4 {[%emt 0:01:16]} 21. Ne4 {[%emt 0:01:01]} O-O-O {[%emt 0:03:37]} 22. Bxe6+ {[%emt 0:04:17]} fxe6 {[%emt 0:00:03]} 23. fxe5 {[%emt 0:00:31]} fxe5 {[%emt 0:01:02]} 24. Qe3 {[%emt 0:01:12]} Rdg8 {[%emt 0:03:56]} 25. Re2 {[%emt 0:03:01]} Kb8 {[%emt 0:00:32]} 26. Nc5 {[%emt 0:03:00]} ({Better is} 26. h3 $16) 26... Bxc5 {[%emt 0:09:39]} 27. Qxc5 {[%emt 0:00:17]} Rh5 {[%emt 0:01:08]} ({Black should play} 27... e4 $11) 28. Qd6+ {[%emt 0:02:27]} Ka7 {[%emt 0:01:55]} 29. Qxe6 {[%emt 0:02:00]} Rg5 {[%emt 0:00:22]} 30. Rg1 {[%emt 0:05:06]} Rf8 {[%emt 0:01:51]} 31. Qc4 {[%emt 0:05:22]} Qf6 {[%emt 0:12:01]} 32. Qxh4 {[%emt 0:03:01]} Rh8 {[%emt 0:03:10]} 33. Qf2+ {[%emt 0:00:28]} Qxf2 {[%emt 0:00:27]} 34. Rxf2 {[%emt 0:00:05]} Rh7 {[%emt 0:00:46]} 35. Re1 {[%emt 0:01:25]} Kb6 {[%emt 0:00:18]} 36. Rfe2 {[%emt 0:00:28]} Rhg7 {[%emt 0:00:45]} 37. g3 {[%emt 0:00:45]} Rf5 {[%emt 0:00:38]} 38. Rxe5 {[%emt 0:00:59]} Rf2 {[%emt 0:00:40]} 39. R1e2 {[%emt 0:00:27]} Rgf7 {[%emt 0:00:16]} 40. g4 {[%emt 0:03:24]} c5 {[%emt 0:01:03]} 41. g5 {[%emt 0:33:28]} R2f4 {[%emt 0:30:29]} 42. b3 {[%emt 0:01:18]} Rg4 {[%emt 0:00:18]} 43. Re6+ {[%emt 0:02:02]} Ka7 {[%emt 0:00:05]} 44. Rf6 {[%emt 0:01:03]} Rg7 {[%emt 0:01:06]} 45. Rg2 {[%emt 0:03:10]} R4xg5 {[%emt 0:08:16]} 46. Rxg5 {[%emt 0:00:27]} Rxg5 {[%emt 0:00:17]} 47. h4 {[%emt 0:01:42]} Rh5 {[%emt 0:00:04]} 48. Rf4 {[%emt 0:00:14]} Kb6 {[%emt 0:00:10]} 49. Kg2 {[%emt 0:00:53]} Re5 {[%emt 0:01:18]} 50. Re4 {[%emt 0:01:03]} Rf5 {[%emt 0:00:42]} 51. Kg3 {[%emt 0:00:25]} Kc6 {[%emt 0:00:40]} 52. Kg4 {[%emt 0:00:18]} Rf2 {[%emt 0:01:14]} 53. Rc4 {[%emt 0:00:38]} Kd5 {[%emt 0:01:05]} 54. h5 {[%emt 0:00:38]} b6 {[%emt 0:00:10]} 55. h6 {[%emt 0:01:18]} Ke6 {[%emt 0:00:12]} 56. h7 {[%emt 0:01:07]} Rh2 {[%emt 0:00:09]} 57. Kg5 {[%emt 0:02:13]} Rxh7 {[%emt 0:00:24]} 58. Re4+ {[%emt 0:00:32]} Kd5 {[%emt 0:00:24]} 59. Kf6 {[%emt 0:02:02]} Rh2 {[%emt 0:06:04]} 60. c4+ {[%emt 0:00:00]} Kd6 {[%emt 0:00:00]} 61. d4 {[%emt 0:00:00]} cxd4 {[%emt 0:00:00]} (61... Rf2+ $11 62. Kg7 cxd4 63. Rxd4+ Kc5 64. Rd5+ Kc6) 62. Rxd4+ {[%emt 0:00:00]} Kc5 {[%emt 0:00:00]} 63. Rd5+ {[%emt 0:00:00]} Kc6 $1 {[%emt 0:00:00]} 64. Ke5 {[%emt 0:00:00]} Rh3 {[%emt 0:00:00]} 65. Rb5 {[%emt 0:00:00]} Rh5+ {[%emt 0:00:00]} 66. Kd4 {[%emt 0:00:00]} Rh4+ {[%emt 0:00:00]} 67. Kc3 {[%emt 0:00:00]} Rh3+ {[%emt 0:00:00]} 68. Kb2 {[%emt 0:00:00]} Rh4 {[%emt 0:00:00]} 69. c5 {[%emt 0:00:00]} Rh2+ {[%emt 0:00:00]} 70. Ka3 {[%emt 0:00:00]} bxc5 {[%emt 0:00:00]} 71. Rxa5 {[%emt 0:00:00]} Rh1 {[%emt 0:00:00]} 72. Ra8 {[%emt 0:00:00]} Kb7 {[%emt 0:00:00]} 73. Rg8 {[%emt 0:00:00]} Ra1+ {[%emt 0:00:00]} 74. Kb2 {[%emt 0:00:00]} Rh1 {[%emt 0:00:00]} 75. Kc3 {[%emt 0:00:00]} Rh4 {[%emt 0:00:00]} 76. Rg6 {[%emt 0:00:00]} Rf4 {[%emt 0:00:00]} 77. Re6 {[%emt 0:00:00]} Rh4 $16 {[%emt 0:00:00]} 78. Kd3 {[%emt 0:00:00]} Rb4 {[%emt 0:00:00]} 79. Kc3 {[%emt 0:00:00]} Rh4 {[%emt 0:00:00]} 80. a5 {[%emt 0:00:00]} Rf4 {[%emt 0:00:00]} 81. Rb6+ {[%emt 0:00:00]} Kc7 {[%emt 0:00:00]} 82. Rh6 {[%emt 0:00:00]} Kb7 {[%emt 0:00:00]} 83. a6+ {[%emt 0:00:00]} Ka7 {[%emt 0:00:00]} 84. Rc6 {[%emt 0:00:00]} Rh4 {[%emt 0:00:42]} 85. Rxc5 {[%emt 0:00:00]} Kxa6 {[%emt 0:04:57]} 86. Rc4 {[%emt 0:00:00]} Rh5 {[%emt 0:00:45]} 87. Rb4 {[%emt 0:00:25]} Rc5+ {[%emt 0:00:20]} 88. Kd4 {[%emt 0:00:39]} Rc1 {[%emt 0:00:55]} 89. Rc4 {[%emt 0:00:16]} Rb1 {[%emt 0:00:27]} 90. Rb4 {[%emt 0:00:32]} Ka5 {[%emt 0:00:20]} 91. Rb8 {[%emt 0:00:07]} Rc1 {[%emt 0:00:24]} 92. b4+ {[%emt 0:00:12]} Ka6 {[%emt 0:00:10]} 93. Kd5 {[%emt 0:00:15]} Rc2 {[%emt 0:00:50]} 94. Kd6 {[%emt 0:00:11]} Ka7 {[%emt 0:00:39]} 95. Re8 {[%emt 0:00:34]} Kb7 {[%emt 0:00:33]} 96. Re5 {[%emt 0:01:08]} Rc6+ {[%emt 0:05:27]} 97. Kd5 {[%emt 0:00:21]} Rc7 {[%emt 0:00:04]} 98. b5 {[%emt 0:00:12]} Kb6 {[%emt 0:00:50]} 99. Kd6 {[%emt 0:00:44]} Rc1 {[%emt 0:00:39]} 1/2-1/2